bitfinex-derivatives/quotes_BNBF0:USTF0_20241230
["timestamp","ask_amount","ask_price","bid_price","bid_amount"]
[1735597266014,0.26275479,700.73,699.4,0.28595939]
[1735597266211,0.26275479,700.72,699.4,0.28595939]
[1735597266412,0.26275479,700.71,699.4,0.28595939]
[1735597266613,0.26275479,700.7,699.4,0.28595939]
[1735597266817,0.26275479,700.69,699.4,0.28595939]
[1735597267020,0.26275479,700.68,699.4,0.28595939]
[1735597267221,0.26275479,700.67,699.4,0.28595939]
[1735597267515,0.26275479,700.66,699.4,0.28595939]
[1735597267719,0.26275479,700.65,699.4,0.28595939]
[1735597267914,0.26275479,700.64,699.4,0.28595939]
[1735597268121,0.26275479,700.63,699.4,0.28595939]
[1735597268320,0.26275479,700.62,699.4,0.28595939]
[1735597268621,0.26276799,700.61,699.4,0.28595939]
[1735597268818,1.49129009,700.86,699.41,1.06196932]
[1735597269015,0.54813658,700.85,699.41,1.06196932]
[1735597269218,0.28536776,700.85,699.41,1.06196932]
[1735597269423,0.26276961,700.84,699.41,1.06196932]
[1735597269823,0.26276961,700.84,699.43,1.06196932]
[1735597270721,0.26276961,700.84,699.44,1.06196932]
[1735597271326,0.54815605,700.83,699.44,1.06196932]
[1735597271624,0.54816012,700.82,699.44,1.06196932]
[1735597271825,0.54816419,700.81,699.46,1.06196932]
[1735597272024,0.26278014,700.8,699.46,1.06196932]
[1735597273126,1.3147212,700.8,699.48,1.06196932]
[1735597273324,0.26278014,700.79,699.48,1.06196932]
[1735597273924,1.75413727,700.78,699.48,1.06196932]
[1735597274126,0.26277261,700.77,699.48,1.06196932]
[1735597274324,1.05194106,700.74,699.57,1.06196932]
[1735597274524,0.26277261,700.73,699.57,1.06196932]
[1735597274924,1.05194106,700.74,699.57,1.06196932]
[1735597274925,0.26279069,700.72,699.57,1.06196932]
[1735597275221,0.26279069,700.71,699.57,1.06196932]
[1735597275420,0.26279069,700.7,699.5,1.06196932]
[1735597275620,0.26279069,700.69,699.5,1.06196932]
[1735597275925,0.26279069,700.68,699.5,1.06196932]
[1735597276126,0.26279069,700.67,699.5,1.06196932]
[1735597276326,0.26279069,700.66,699.42,1.06196932]
[1735597276524,0.26280507,700.65,699.42,1.06196932]
[1735597276725,0.26280507,700.64,699.42,1.06196932]
[1735597276920,1.05194106,700.76,699.42,1.06196932]
[1735597277321,0.26280419,700.75,699.4,1.34792871]
[1735597277527,0.26280419,700.74,699.4,1.34792871]
[1735597277727,0.26280419,700.73,699.4,1.34792871]
[1735597277927,0.26280419,700.72,699.4,1.34792871]
[1735597278125,0.26280419,700.71,699.4,1.34792871]
[1735597278323,0.26280419,700.7,699.4,1.34792871]
[1735597278527,0.26280419,700.69,699.4,1.34792871]
[1735597278727,0.26280419,700.68,699.4,1.34792871]
[1735597278930,0.26280419,700.67,699.4,1.34792871]
[1735597279132,0.26280419,700.77,699.4,1.34792871]
[1735597279431,0.26280419,700.76,699.43,1.06196932]
[1735597279635,0.26280419,700.75,699.43,1.06196932]
[1735597279929,0.26280419,700.74,699.43,1.06196932]
[1735597280130,0.26280419,700.73,699.43,1.06196932]
[1735597280330,0.26280419,700.72,699.42,1.06196932]
[1735597280529,0.26280419,700.71,699.42,1.06196932]
[1735597280732,0.26280419,700.7,699.42,1.06196932]
[1735597280924,0.26280419,700.69,699.42,1.06196932]
[1735597281129,0.26280419,700.68,699.42,1.06196932]
[1735597281431,1.49136466,700.78,699.42,1.06196932]
[1735597281631,0.26279619,700.77,699.42,1.06196932]
[1735597282332,1.49136466,700.78,699.42,1.06196932]
[1735597282832,1.49136466,700.78,699.49,1.06196932]
[1735597284134,1.49136466,700.78,699.54,1.06196932]
[1735597285431,1.49136466,700.78,699.59,1.06196932]
[1735597286739,1.49136466,700.78,699.61,1.06196932]
[1735597288237,1.49136466,700.78,699.82,1.06196932]
[1735597289240,1.49136466,700.78,699.86,1.06196932]
[1735597290040,1.49136466,700.78,699.79,1.06196932]
[1735597291038,1.49136466,700.78,699.54,1.06196932]
[1735597291039,1.49136466,700.78,699.75,1.06196932]
[1735597292041,1.49136466,700.78,699.72,1.06196932]
[1735597293445,1.49136466,700.78,699.46,1.06196932]
[1735597293446,1.49136466,700.78,699.66,1.06196932]
[1735597294944,1.49136466,700.78,699.65,1.06196932]
[1735597296045,1.49136466,700.78,699.64,1.06196932]
[1735597298142,1.49136466,700.78,699.41,0.70817897]
[1735597298143,1.49136466,700.78,699.67,1.06196932]
[1735597299146,1.49136466,700.78,699.68,1.06196932]
[1735597300842,1.49136466,700.78,699.41,1.77014829]
[1735597300843,1.49136466,700.78,699.65,1.06196932]
[1735597301852,1.49136466,700.78,699.57,1.06196932]
[1735597304352,1.49136466,700.78,699.56,1.06196932]
[1735597305654,1.49136466,700.78,699.4,0.28595939]
[1735597313359,0.26276336,700.77,699.4,0.28595939]
[1735597313561,1.49136466,700.78,699.4,0.28595939]
[1735597314262,0.26276281,700.77,699.4,0.28595939]
[1735597315355,0.26276281,700.77,699.48,1.06196932]
[1735597315558,0.26276169,700.76,699.48,1.06196932]
[1735597315757,0.26276169,700.75,699.48,1.06196932]
[1735597315961,0.26276169,700.77,699.48,1.06196932]
[1735597316166,0.26276169,700.76,699.48,1.06196932]
[1735597316353,0.26276169,700.75,699.48,1.06196932]
[1735597316559,0.26276169,700.74,699.48,1.06196932]
[1735597316760,0.26276169,700.73,699.49,1.06196932]
[1735597317058,0.26276169,700.72,699.49,1.06196932]
[1735597317256,0.26276169,700.71,699.49,1.06196932]
[1735597317455,0.26276169,700.7,699.49,1.06196932]
[1735597317655,0.26276169,700.69,699.49,1.06196932]
[1735597317861,0.26276169,700.68,699.49,1.06196932]
[1735597318162,1.4913114,700.69,699.49,1.06196932]
[1735597318363,0.26276618,700.68,699.49,1.06196932]
[1735597318764,0.26276618,700.68,699.5,1.06196932]
[1735597319862,0.26276618,700.68,699.51,1.06196932]
[1735597320761,0.26276765,700.67,699.51,1.06196932]
[1735597320966,0.26276765,700.66,699.5,1.06196932]
[1735597321169,0.26276765,700.65,699.5,1.06196932]
[1735597321466,0.26276765,700.64,699.5,1.06196932]
[1735597321767,1.4913114,700.69,699.5,1.06196932]
[1735597321966,0.26274768,700.68,699.5,1.06196932]
[1735597322166,0.26274768,700.68,699.4,0.28595939]
[1735597322167,0.26274768,700.68,699.54,1.06196932]
[1735597322363,1.4913114,700.69,699.54,1.06196932]
[1735597323172,1.4913114,700.69,699.55,0.28589807]
[1735597323367,1.4913114,700.69,699.62,1.06196932]
[1735597324366,1.05194106,701.08,699.62,1.06196932]
[1735597324570,1.05194106,701.28,699.55,0.28589807]
[1735597324571,1.4910984,700.78,699.66,1.06196932]
[1735597324769,1.05194106,701.09,699.66,1.06196932]
[1735597324970,1.49102919,700.78,699.66,1.06196932]
[1735597325167,1.05194106,701.09,699.66,1.06196932]
[1735597325369,0.26271734,701.08,699.66,1.06196932]
[1735597325564,0.28527821,701.07,699.66,1.06196932]
[1735597325772,0.26271734,701.06,699.71,1.06196932]
[1735597326073,0.28528635,701.05,699.71,1.06196932]
[1735597326272,0.26271734,701.04,699.71,1.06196932]
[1735597326470,0.28529449,701.03,699.71,1.06196932]
[1735597326773,0.26271734,701.02,699.71,1.06196932]
[1735597326975,1.59995696,701.02,699.68,1.06196932]
[1735597327175,0.26271734,701.01,699.68,1.06196932]
[1735597327978,0.26271734,701.01,699.73,1.06196932]
[1735597329181,0.28529856,701.02,699.71,1.06196932]
[1735597329880,0.28529856,701.02,699.72,0.28582861]
[1735597330275,0.28529856,701.02,699.85,1.06196932]
[1735597331382,1.49101322,701.08,699.93,1.06196932]
[1735597331575,1.49101322,701.08,699.94,0.28573877]
[1735597331776,1.05194106,701.38,699.94,0.28573877]
[1735597331981,1.49033211,701.14,699.94,0.28573877]
[1735597332480,1.49020447,701.2,699.96,1.06196932]
[1735597333678,1.49020447,701.2,699.99,1.06196932]
[1735597334183,1.49020447,701.2,700.0,0.28571428]
[1735597334986,0.63226824,702.18,700.0,0.28571428]
[1735597334987,1.05194106,701.95,700.0,0.28571428]
[1735597335187,1.49002901,701.38,700.0,0.28571428]
[1735597335485,0.26248756,701.37,700.0,0.28571428]
[1735597335680,1.49001838,701.37,700.0,0.28571428]
[1735597336080,1.49001838,701.37,700.0,1.3476836]
[1735597337488,1.49001838,701.37,700.0,0.28571428]
[1735597351504,0.26249786,701.36,700.0,0.28571428]
[1735597356703,0.26250561,701.35,700.0,0.28571428]
[1735597356903,0.26250561,701.34,700.0,0.28571428]
[1735597357204,0.26250561,701.33,700.0,0.28571428]
[1735597357405,0.26250561,701.32,700.0,0.28571428]
[1735597357604,0.26250561,701.31,700.0,0.28571428]
[1735597357905,1.49001838,701.37,700.0,0.28571428]
[1735597358103,0.26249676,701.36,700.0,0.28571428]
[1735597359306,0.26249949,701.35,700.0,0.28571428]
[1735597359604,0.26249949,701.34,700.0,0.28571428]
[1735597359804,0.26249949,701.33,700.0,0.28571428]
[1735597360006,0.26249949,701.32,700.0,0.28571428]
[1735597360306,0.26249949,701.31,700.0,0.28571428]
[1735597360506,0.26249949,701.3,700.0,0.28571428]
[1735597360707,1.49001838,701.37,700.0,0.28571428]
[1735597360906,0.26249866,701.36,700.0,0.28571428]
[1735597361107,0.26249866,701.35,700.0,0.28571428]
[1735597361808,0.26249866,701.35,700.03,1.06196932]
[1735597362006,0.26249784,701.34,700.04,0.28569796]
[1735597362206,0.26249784,701.33,700.04,0.28569796]
[1735597362405,0.26249784,701.32,700.04,0.28569796]
[1735597362706,1.05194106,701.78,700.04,0.28569796]
[1735597362906,1.48980043,701.48,700.04,0.28569796]
[1735597363107,1.05194106,701.63,700.19,1.06196932]
[1735597363305,1.48973666,701.47,700.2,0.28563267]
[1735597363611,1.05194106,701.63,700.2,0.28563267]
[1735597364309,1.05194106,701.88,700.32,1.06196932]
[1735597364513,0.26239181,701.87,700.33,0.28557965]
[1735597364709,0.26239346,701.86,700.33,0.28557965]
[1735597365508,0.26239346,701.86,700.42,1.06196932]
[1735597365708,0.26239346,701.86,700.43,0.28553888]
[1735597366604,0.26239346,701.86,700.43,1.3475082]
[1735597367204,1.48922133,701.87,700.43,1.3475082]
[1735597367404,0.26239262,701.86,700.43,1.3475082]
[1735597367604,0.26239262,701.86,700.45,1.06196932]
[1735597369112,0.26239262,701.86,700.44,1.06196932]
[1735597369305,0.26239262,701.86,700.45,0.28553073]
[1735597370714,0.26235965,701.85,700.5,1.06196932]
[1735597370911,0.26235965,701.84,700.51,0.28550627]
[1735597371113,0.26235965,701.83,700.51,0.28550627]
[1735597371313,0.26235965,701.82,700.51,0.28550627]
[1735597371615,0.26235965,701.81,700.51,0.28550627]
[1735597371807,0.26235965,701.8,700.51,0.28550627]
[1735597372012,0.26235965,701.79,700.56,1.06196932]
[1735597372213,0.26235965,701.78,700.57,0.28548182]
[1735597372409,0.26235965,701.77,700.57,0.28548182]
[1735597372614,0.26235381,701.76,700.57,0.28548182]
[1735597372809,0.26235381,701.75,700.57,0.28548182]
[1735597373007,0.26235381,701.86,700.57,0.28548182]
[1735597373209,0.26235119,701.85,700.57,0.28548182]
[1735597373511,1.48922133,701.87,700.57,0.28548182]
[1735597373512,0.26235119,701.84,700.57,0.28548182]
[1735597373812,0.26235119,701.83,700.57,0.28548182]
[1735597374013,0.26235119,701.82,700.57,0.28548182]
[1735597374213,1.48922133,701.87,700.57,0.28548182]
[1735597374214,0.26235119,701.81,700.57,0.28548182]
[1735597374514,0.26235119,701.8,700.57,0.28548182]
[1735597374711,0.26235119,701.79,700.57,0.28548182]
[1735597374914,0.26235119,701.78,700.57,0.28548182]
[1735597375110,0.28492869,701.93,700.57,0.28548182]
[1735597375315,1.48899831,701.78,700.57,0.28548182]
[1735597375516,0.26235585,701.77,700.57,0.28548182]
[1735597375716,0.26235585,701.76,700.57,0.28548182]
[1735597375915,0.26235585,701.75,700.57,0.28548182]
[1735597376215,1.48890275,701.92,700.57,0.28548182]
[1735597376417,0.26238696,701.91,700.57,0.28548182]
[1735597377721,0.26238904,701.9,700.57,0.28548182]
[1735597378017,1.48890275,701.92,700.57,0.28548182]
[1735597378018,0.26238904,701.89,700.57,0.28548182]
[1735597378217,0.26238904,701.88,700.57,0.28548182]
[1735597378417,0.2623902,701.87,700.57,0.28548182]
[1735597378617,0.2623902,701.86,700.57,0.28548182]
[1735597378818,1.48890275,701.92,700.57,0.28548182]
[1735597378819,0.2623902,701.85,700.57,0.28548182]
[1735597379018,1.48890275,701.92,700.57,0.28548182]
[1735597379019,0.2623902,701.84,700.57,0.28548182]
[1735597379211,0.2623902,701.83,700.57,0.28548182]
[1735597379411,1.48890275,701.92,700.57,0.28548182]
[1735597379412,0.2623902,701.82,700.57,0.28548182]
[1735597379718,0.2623902,701.81,700.57,0.28548182]
[1735597379923,0.2623902,701.8,700.57,0.28548182]
[1735597380120,0.2623902,701.79,700.57,0.28548182]
[1735597380322,0.2623902,701.78,700.57,0.28548182]
[1735597380514,0.26238832,701.77,700.57,0.28548182]
[1735597380720,0.26238832,701.76,700.57,0.28548182]
[1735597380920,0.26238832,701.75,700.57,0.28548182]
[1735597381121,1.48890275,701.92,700.57,0.28548182]
[1735597381316,0.26239615,701.91,700.57,0.28548182]
[1735597382422,0.26238327,701.9,700.57,0.28548182]
[1735597382619,0.26238327,701.89,700.57,0.28548182]
[1735597382815,0.26238327,701.88,700.57,0.28548182]
[1735597383020,0.26238327,701.87,700.57,0.28548182]
[1735597383220,0.26238327,701.86,700.57,0.28548182]
[1735597383416,0.26238327,701.85,700.57,0.28548182]
[1735597383616,0.26238327,701.84,700.57,0.28548182]
[1735597383820,0.26238327,701.83,700.57,0.28548182]
[1735597384021,1.48890275,701.92,700.57,0.28548182]
[1735597384022,0.26238327,701.82,700.57,0.28548182]
[1735597384217,0.26238327,701.81,700.57,0.28548182]
[1735597384523,0.26238327,701.8,700.57,0.28548182]
[1735597384724,0.26238327,701.79,700.57,0.28548182]
[1735597384922,0.26237507,701.78,700.57,0.28548182]
[1735597385125,0.26237507,701.77,700.57,0.28548182]
[1735597385326,0.26237507,701.76,700.57,0.28548182]
[1735597385525,1.48890275,701.92,700.57,0.28548182]
[1735597385824,0.26237492,701.91,700.57,0.28548182]
[1735597386023,0.26237492,701.9,700.57,0.28548182]
[1735597387626,1.48915761,701.91,700.57,0.28548182]
[1735597387827,0.26237557,701.9,700.57,0.28548182]
[1735597390429,0.2623837,701.89,700.57,0.28548182]
[1735597390629,0.2623837,701.88,700.57,0.28548182]
[1735597390930,0.2623837,701.87,700.57,0.28548182]
[1735597391125,0.2623837,701.86,700.57,0.28548182]
[1735597391323,0.2623837,701.85,700.57,0.28548182]
[1735597391628,0.2623837,701.84,700.57,0.28548182]
[1735597391828,0.2623837,701.83,700.57,0.28548182]
[1735597392028,1.48915761,701.91,700.57,0.28548182]
[1735597392228,0.26237981,701.9,700.57,0.28548182]
[1735597392933,0.28494493,701.89,700.57,0.28548182]
[1735597393129,0.26237981,701.88,700.57,0.28548182]
[1735597393331,0.28495305,701.87,700.57,0.28548182]
[1735597393530,0.26237981,701.86,700.57,0.28548182]
[1735597393730,0.54734098,701.85,700.57,0.28548182]
[1735597393935,0.54734504,701.84,700.57,0.28548182]
[1735597394231,0.5473491,701.83,700.57,0.28548182]
[1735597394528,1.05194106,701.68,700.57,0.28548182]
[1735597394733,0.26237981,701.67,700.57,0.28548182]
[1735597395231,0.26237981,701.67,700.42,1.06196932]
[1735597395434,1.05194106,701.66,700.43,1.06196932]
[1735597395732,0.26250172,701.65,700.43,1.06196932]
[1735597396231,1.77468746,701.64,700.43,1.06196932]
[1735597396531,0.26250172,701.63,700.43,1.06196932]
[1735597396930,1.05194106,701.53,700.26,1.06196932]
[1735597397132,0.26250172,701.52,700.26,1.06196932]
[1735597398128,0.26250172,701.52,700.32,1.06196932]
[1735597398329,0.26250172,701.51,700.32,1.06196932]
[1735597398630,0.26250172,701.5,700.32,1.06196932]
[1735597398930,0.26250172,701.49,700.32,1.06196932]
[1735597399131,0.26250172,701.48,700.29,1.06196932]
[1735597399327,0.26250172,701.47,700.29,1.06196932]
[1735597399527,0.26250172,701.46,700.29,1.06196932]
[1735597399729,0.26250172,701.45,700.29,1.06196932]
[1735597399930,0.26250172,701.44,700.29,1.06196932]
[1735597400126,0.26250172,701.43,700.28,1.06196932]
[1735597400326,1.05194106,701.63,700.29,0.28559596]
[1735597400533,0.26246533,701.62,700.29,0.28559596]
[1735597400732,1.05194106,701.63,700.29,0.28559596]
[1735597400932,0.26244301,701.62,700.29,0.28559596]
[1735597401232,0.26244301,701.62,700.36,1.06196932]
[1735597401431,0.26244301,701.61,700.36,1.06196932]
[1735597401626,0.26244301,701.6,700.36,1.06196932]
[1735597401825,0.26244301,701.59,700.36,1.06196932]
[1735597402031,0.26244301,701.58,700.36,1.06196932]
[1735597402231,0.26244301,701.57,700.36,1.06196932]
[1735597402427,0.26244301,701.57,700.29,0.28559596]
[1735597402428,0.26244301,701.56,700.37,1.06196932]
[1735597402731,1.77468746,701.64,700.37,1.06196932]
[1735597402931,0.26243512,701.63,700.37,1.06196932]
[1735597403232,0.26243512,701.63,700.29,0.28559596]
[1735597403233,0.26243512,701.63,700.35,1.06196932]
[1735597403632,0.26243512,701.63,700.36,0.28556742]
[1735597404233,0.26243512,701.63,700.37,1.06196932]
[1735597405129,0.26243512,701.63,700.38,0.28555926]
[1735597405630,0.26243512,701.63,700.41,1.06196932]
[1735597406833,0.26243512,701.63,700.42,1.06196932]
[1735597408534,1.77468746,701.64,700.42,1.06196932]
[1735597408735,1.77468746,701.64,700.38,0.28555926]
[1735597408736,1.77468746,701.64,700.38,1.34752858]
[1735597409838,1.77468746,701.64,700.39,1.06196932]
[1735597410030,1.77468746,701.64,700.4,0.28555111]
[1735597410337,0.26241705,701.63,700.4,0.28555111]
[1735597410838,0.26241705,701.63,700.41,1.06196932]
[1735597411438,0.26242623,701.62,700.41,1.06196932]
[1735597411735,0.26242521,701.61,700.41,1.06196932]
[1735597411939,0.26242521,701.6,700.41,1.06196932]
[1735597412138,0.26242521,701.6,700.4,0.28555111]
[1735597412139,1.77468746,701.64,700.42,1.06196932]
[1735597412337,0.26242529,701.63,700.42,1.06196932]
[1735597413532,0.26242529,701.63,700.44,1.06196932]
[1735597414138,0.26242129,701.62,700.44,1.06196932]
[1735597414335,1.77468746,701.64,700.44,1.06196932]
[1735597415039,1.77468746,701.64,700.45,0.28553073]
[1735597415839,1.77468746,701.64,700.48,1.06196932]
[1735597417741,0.26240845,701.63,700.49,1.06196932]
[1735597418738,0.26240845,701.63,700.52,1.06196932]
[1735597418945,1.77468746,701.64,700.52,1.06196932]
[1735597419240,1.489641,701.64,700.52,1.06196932]
[1735597419443,1.489641,701.64,700.53,0.28549812]
[1735597419644,1.489641,701.64,700.56,1.06196932]
[1735597419845,1.489641,701.64,700.53,0.28549812]
[1735597420745,1.489641,701.64,700.57,1.0664356]
[1735597421144,1.489641,701.64,700.58,0.28547774]
[1735597426946,1.0598692,701.96,700.58,0.28547774]
[1735597427147,1.488993,701.78,700.58,0.28547774]
[1735597427345,1.0598692,701.96,700.58,0.28547774]
[1735597427750,1.48891868,701.78,700.58,0.28547774]
[1735597428051,1.0598692,702.06,700.6,1.0664356]
[1735597428351,0.26233724,702.05,700.61,0.28546552]
[1735597429145,1.48874352,702.04,700.61,0.28546552]
[1735597429349,0.26233724,702.03,700.61,0.28546552]
[1735597430153,0.26233951,702.02,700.61,0.28546552]
[1735597430350,1.48874352,702.04,700.61,0.28546552]
[1735597430550,0.26233715,702.03,700.65,1.0664356]
[1735597430744,0.26233715,702.03,700.66,0.28544515]
[1735597431751,1.0598692,702.02,700.67,1.0664356]
[1735597431953,0.26233715,702.01,700.67,1.0664356]
[1735597432348,0.26233715,702.01,700.67,1.35187667]
[1735597432753,0.26234236,702.0,700.67,1.35187667]
[1735597433052,1.48874352,702.04,700.67,1.35187667]
[1735597433053,1.32221156,701.99,700.68,1.0664356]
[1735597433252,1.0598692,701.99,700.68,1.0664356]
[1735597433453,0.26234272,701.98,700.68,1.0664356]
[1735597434053,1.32221192,701.98,700.68,1.0664356]
[1735597434254,0.26234272,701.97,700.68,1.0664356]
[1735597435249,0.26234272,701.97,700.69,1.0664356]
[1735597435250,1.0598692,701.96,700.69,1.0664356]
[1735597435453,0.26234423,701.95,700.69,1.0664356]
[1735597436255,1.32221343,701.95,700.71,1.0664356]
[1735597436451,0.26234423,701.94,700.71,1.0664356]
[1735597437450,0.26234423,701.94,700.67,0.28544107]
[1735597437654,0.26234423,701.93,700.67,0.28544107]
[1735597437854,0.26234423,701.92,700.67,0.28544107]
[1735597438054,0.26235101,701.91,700.67,0.28544107]
[1735597438255,0.26235101,701.9,700.67,0.28544107]
[1735597438452,0.26235101,701.89,700.67,0.28544107]
[1735597438651,1.0598692,702.01,700.67,0.28544107]
[1735597438852,0.26234551,702.0,700.67,0.28544107]
[1735597439755,0.26234551,701.99,700.67,0.28544107]
[1735597439957,0.26234551,701.98,700.67,0.28544107]
[1735597440157,0.26234551,701.97,700.67,0.28544107]
[1735597440353,0.26234551,701.96,700.67,0.28544107]
[1735597440553,1.0598692,702.02,700.67,0.28544107]
[1735597440755,1.48882313,701.95,700.67,0.28544107]
[1735597441060,0.2623514,701.94,700.67,0.28544107]
[1735597441260,1.48882313,701.95,700.67,0.28544107]
[1735597441561,0.2623504,701.94,700.67,0.28544107]
[1735597442662,0.26234886,701.93,700.67,0.28544107]
[1735597442954,0.26234886,701.92,700.67,0.28544107]
[1735597443158,0.26234886,701.91,700.67,0.28544107]
[1735597443464,0.26234886,701.9,700.67,0.28544107]
[1735597443658,0.26234886,701.89,700.67,0.28544107]
[1735597443861,0.26234886,701.88,700.67,0.28544107]
[1735597444160,1.48882313,701.95,700.67,0.28544107]
[1735597444161,0.26234886,701.87,700.67,0.28544107]
[1735597444461,1.48882313,701.95,700.67,0.28544107]
[1735597444662,0.26235015,701.94,700.67,0.28544107]
[1735597445763,0.26235296,701.93,700.67,0.28544107]
[1735597445965,0.26235296,701.92,700.67,0.28544107]
[1735597446165,1.48882313,701.95,700.67,0.28544107]
[1735597446367,0.26234506,701.94,700.67,0.28544107]
[1735597446764,1.48882313,701.95,700.67,0.28544107]
[1735597447166,1.48882313,701.95,700.73,1.0664356]
[1735597447365,1.48882313,701.95,700.74,0.28541256]
[1735597448067,1.48882313,701.95,700.8,1.0664356]
[1735597449266,1.48882313,701.95,700.83,1.0664356]
[1735597450263,1.48882313,701.95,700.87,1.0664356]
[1735597451263,1.48882313,701.95,700.86,1.0664356]
[1735597452361,1.48882313,701.95,700.88,1.0664356]
[1735597453468,1.48882313,701.95,700.9,1.0664356]
[1735597454569,1.48882313,701.95,700.92,1.0664356]
[1735597455566,1.48882313,701.95,700.93,1.0664356]
[1735597456367,1.48882313,701.95,700.91,1.0664356]
[1735597457470,1.48882313,701.95,700.74,0.28541256]
[1735597457471,1.48882313,701.95,700.9,1.0664356]
[1735597458371,1.48882313,701.95,700.91,1.0664356]
[1735597459673,1.48882313,701.95,700.96,1.0664356]
[1735597460866,1.48882313,701.95,700.94,1.0664356]
[1735597461972,1.48882313,701.95,700.76,1.35184001]
[1735597463371,1.48882313,701.95,700.76,0.28540441]
[1735597471773,1.48882313,701.95,700.79,1.0664356]
[1735597471977,1.48882313,701.95,700.8,0.28538812]
[1735597474679,1.48882313,701.95,700.8,1.35182372]
[1735597475478,1.48882313,701.95,700.83,1.0664356]
[1735597477582,1.48882313,701.95,700.88,1.0664356]
[1735597477778,1.48882313,701.95,700.89,0.28535148]
[1735597478482,1.48882313,701.95,700.91,1.0664356]
[1735597478783,1.0598692,702.34,700.92,0.28533926]
[1735597478973,1.48835087,702.05,700.92,0.28533926]
[1735597479179,1.0598692,702.34,700.92,0.28533926]
[1735597479583,1.0598692,702.6,700.92,0.28533926]
[1735597479584,1.48829783,702.07,700.92,0.28533926]
[1735597479781,1.0598692,702.5,700.92,0.28533926]
[1735597480777,1.0598692,702.51,700.92,0.28533926]
[1735597480978,1.48806979,702.29,700.92,0.28533926]
[1735597481884,1.48806979,702.29,700.93,1.0664356]
[1735597482384,1.48806979,702.29,700.94,0.28533112]
[1735597482981,1.48806979,702.29,700.99,1.0664356]
[1735597486885,1.48806979,702.29,700.98,1.0664356]
[1735597489283,0.26217312,702.28,700.98,1.0664356]
[1735597489485,1.48806979,702.29,701.19,1.0664356]
[1735597489685,0.26217535,702.28,701.19,1.0664356]
[1735597489984,1.48806979,702.29,701.19,1.0664356]
[1735597490387,1.48806979,702.29,701.17,1.0664356]
[1735597491183,1.48806979,702.29,701.2,1.0664356]
[1735597492288,1.48806979,702.29,700.97,1.0664356]
[1735597492289,0.26214638,702.28,701.18,1.0664356]
[1735597492885,1.48806979,702.29,701.18,1.0664356]
[1735597493085,0.2621318,702.28,701.18,1.0664356]
[1735597493383,1.48806979,702.29,701.18,1.0664356]
[1735597493588,1.48806979,702.29,700.94,1.35176672]
[1735597493589,1.48806979,702.29,701.32,1.0664356]
[1735597494485,1.48806979,702.29,701.14,1.0664356]
[1735597494486,1.48806979,702.29,701.33,1.0664356]
[1735597495390,1.48806979,702.29,701.31,1.0664356]
[1735597496691,1.48806979,702.29,701.29,1.0664356]
[1735597498192,1.48806979,702.29,701.26,1.0664356]
[1735597499191,1.48806979,702.29,701.07,1.0664356]
[1735597499192,1.48806979,702.29,701.25,1.0664356]
[1735597500293,1.48806979,702.29,700.94,0.28533112]
[1735597500294,1.48806979,702.29,701.05,1.0664356]
[1735597500495,1.48806979,702.29,701.06,0.28528228]
[1735597502692,1.48806979,702.29,701.06,1.35171788]
[1735597503689,1.48806979,702.29,701.06,0.28528228]
[1735597505192,1.0598692,702.76,701.06,0.28528228]
[1735597505597,1.48737018,702.52,701.06,0.28528228]
[1735597505903,1.48737018,702.52,701.06,1.35171788]
[1735597507203,1.48737018,702.52,701.09,1.0664356]
[1735597508303,1.48737018,702.52,701.22,1.0664356]
[1735597508499,0.27088755,702.3,701.22,1.0664356]
[1735597509103,1.48737018,702.52,701.06,0.28528228]
[1735597509104,1.48737018,702.52,701.27,1.0664356]
[1735597510004,1.48737018,702.52,701.28,0.28519279]
[1735597512503,0.28469345,702.51,701.28,0.28519279]
[1735597514311,0.26222209,702.5,701.28,0.28519279]
[1735597514507,0.26222209,702.5,700.49,1.0664356]
[1735597514708,0.26222209,702.5,700.52,1.0664356]
[1735597515203,0.26222209,702.5,700.54,0.28549404]
[1735597515604,1.0598692,702.46,700.81,1.0664356]
[1735597515909,0.26222209,702.45,700.81,1.0664356]
[1735597516612,1.48822888,702.44,700.81,1.0664356]
[1735597516805,0.26222209,702.43,700.81,1.0664356]
[1735597517010,0.26222209,702.42,700.81,1.0664356]
[1735597517207,1.0598692,702.36,700.76,1.0664356]
[1735597517411,0.26222209,702.35,700.76,1.0664356]
[1735597517612,0.26222209,702.34,700.76,1.0664356]
[1735597517810,0.26222209,702.33,700.76,1.0664356]
[1735597518014,0.26222209,702.32,700.76,1.0664356]
[1735597518310,0.26222209,702.31,700.76,1.0664356]
[1735597518615,0.26222209,702.3,700.76,1.0664356]
[1735597518814,0.26222209,702.29,700.76,1.0664356]
[1735597519015,1.32209129,702.28,700.67,1.0664356]
[1735597519218,0.26228446,702.27,700.67,1.0664356]
[1735597519411,0.26228446,702.26,700.67,1.0664356]
[1735597519609,0.26228446,702.25,700.67,1.0664356]
[1735597519810,0.26228446,702.24,700.67,1.0664356]
[1735597520113,0.26228446,702.23,700.68,0.285437]
[1735597520315,0.26228446,702.22,700.68,0.285437]
[1735597520509,0.26228446,702.21,700.68,0.285437]
[1735597520714,0.28481913,702.2,700.68,0.285437]
[1735597521017,0.26228446,702.19,700.68,0.285437]
[1735597521212,0.26230529,702.18,700.68,0.285437]
[1735597521411,0.26230529,702.17,700.68,0.285437]